bitfinex-derivatives/quotes_ETHF0:USTF0_20250730
["timestamp","ask_amount","ask_price","bid_price","bid_amount"]
[1753884681041,0.4182,3776.5,3776.4,19.8985]
[1753884681341,0.52955,3776.8,3776.7,6.0703]
[1753884681640,0.8607,3777.1,3776.8,6.0703]
[1753884681841,4.49409,3777.2,3777.1,2.3895]
[1753884682036,5.58149,3777.2,3777.1,2.3895]
[1753884682734,5.58149,3777.2,3777.1,0.8476]
[1753884683036,0.2,3777.9,3777.1,0.8996]
[1753884683243,0.52947,3777.4,3777.0,18.534]
[1753884683446,2.3601,3777.7,3777.4,0.52946]
[1753884683645,0.52942,3777.7,3777.6,2.2641]
[1753884683946,0.52941,3777.8,3777.6,19.4326]
[1753884684147,1.39011,3777.8,3777.7,2.7812]
[1753884685447,3.30771,3777.8,3777.6,18.533]
[1753884685643,2.7783,3777.7,3777.6,18.533]
[1753884685944,2.7783,3777.7,3777.6,19.8975]
[1753884687447,2.7783,3777.7,3777.6,21.3142]
[1753884687650,3.30777,3777.3,3777.2,1.3645]
[1753884687850,3.30777,3777.3,3777.2,19.8955]
[1753884688238,0.52951,3777.1,3776.8,0.52954]
[1753884688443,0.947,3777.1,3777.0,1.3856]
[1753884688644,1.8671,3777.1,3777.0,2.9233]
[1753884689149,3.3992,3777.1,3777.0,21.4523]
[1753884689646,3.3992,3777.1,3777.0,19.9146]
[1753884689846,2.8697,3777.0,3776.5,38.139]
[1753884690047,2.98174,3776.8,3776.6,1.3856]
[1753884690348,0.52954,3776.8,3776.7,18.529]
[1753884690548,41.32954,3776.8,3776.7,18.529]
[1753884690739,44.19924,3776.8,3776.7,18.529]
[1753884691349,2.96246,3776.0,3775.9,2.4157]
[1753884691648,1.5321,3775.8,3775.5,1.5377]
[1753884691852,0.52973,3775.5,3775.4,38.134]
[1753884692057,3.39943,3775.5,3775.4,56.662]
[1753884692553,3.39943,3775.5,3775.4,18.528]
[1753884693454,0.52973,3775.5,3775.4,22.3443]
[1753884693643,0.9201,3775.6,3775.5,3.8163]
[1753884693847,2.9819,3775.8,3775.4,19.05774]
[1753884694047,1.5321,3776.3,3775.4,18.528]
[1753884694253,0.9201,3776.2,3775.7,2.2786]
[1753884694449,1.9496,3776.1,3775.8,19.9136]
[1753884694753,3.39936,3776.0,3775.9,18.528]
[1753884695453,3.39936,3776.0,3775.9,19.9136]
[1753884695650,3.39936,3776.0,3775.9,21.4513]
[1753884697052,3.39936,3776.0,3775.9,18.528]
[1753884697455,3.39936,3776.0,3775.9,19.9136]
[1753884697660,3.39936,3776.0,3775.9,21.4513]
[1753884697858,2.98186,3776.0,3775.9,21.4513]
[1753884698458,3.39936,3776.0,3775.9,19.9136]
[1753884698648,5.58166,3776.0,3775.9,19.9136]
[1753884699259,5.58166,3776.0,3775.9,18.528]
[1753884699660,5.58166,3776.0,3775.9,20.7916]
[1753884699961,1.49,3776.0,3775.9,24.8498]
[1753884700357,5.052,3776.0,3775.9,0.878]
[1753884700557,5.58171,3775.6,3775.5,4.168095]
[1753884700859,5.58171,3775.6,3775.5,19.406]
[1753884701054,46.38171,3775.6,3775.5,23.9568]
[1753884701460,46.38171,3775.6,3775.5,3.8911]
[1753884701657,1.32439,3775.3,3774.7,4.76231713]
[1753884701964,1.32439,3775.3,3774.2,0.01854673]
[1753884701965,0.52989,3774.3,3774.2,0.01854673]
[1753884702260,2.03591329,3774.3,3774.2,0.01854673]
[1753884702454,2.03591329,3774.3,3774.2,6.73e-06]
[1753884702659,7.03591329,3774.3,3774.2,6.73e-06]
[1753884702861,7.24226197,3774.3,3774.2,6.73e-06]
[1753884703060,0.52995,3773.9,3773.8,2.95e-06]
[1753884703262,2.03597329,3773.9,3773.8,2.95e-06]
[1753884703458,7.03597329,3773.9,3773.8,2.95e-06]
[1753884703963,2.03597329,3773.9,3773.8,2.95e-06]
[1753884705662,2.03597329,3773.9,3773.8,0.89300295]
[1753884705864,2.03597329,3773.9,3773.8,2.43070295]
[1753884706566,0.53001,3773.5,3773.4,2.9233]
[1753884707068,0.53008,3773.0,3772.9,21.5203]
[1753884707463,0.53008,3773.0,3772.9,2.9233]
[1753884707863,0.53008,3773.0,3772.9,1.3856]
[1753884708062,0.53008,3773.0,3772.9,2.9233]
[1753884708561,1.50602329,3773.1,3772.1,0.53019]
[1753884708762,1.50602329,3773.1,3772.3,2.06787]
[1753884708968,0.53012,3772.8,3772.2,19.10718]
[1753884709168,41.33012,3772.8,3772.7,0.893]
[1753884709367,41.33012,3772.8,3772.7,3.8163]
[1753884710167,40.8,3772.8,3772.7,3.8163]
[1753884710469,0.53009,3773.0,3772.8,3.8163]
[1753884710668,0.53006,3773.2,3772.9,3.8163]
[1753884710871,0.53004,3773.3,3773.1,0.893]
[1753884711168,40.8,3773.2,3773.1,0.893]
[1753884711367,0.52996,3773.9,3773.5,0.53]
[1753884711674,0.53003,3773.4,3772.9,18.572]
[1753884711873,0.53003,3773.4,3773.1,0.53006]
[1753884712070,1.32496,3773.7,3772.2,1.32547]
[1753884712267,0.53002,3773.5,3773.3,3.8163]
[1753884712567,0.53,3773.6,3773.5,3.8163]
[1753884712973,0.53,3773.6,3773.5,2.4307]
[1753884713176,0.53,3773.6,3773.5,0.893]
[1753884713475,0.5301,3772.9,3772.8,2.2786]
[1753884713771,0.5301,3772.9,3772.8,3.8163]
[1753884713963,41.3301,3772.9,3772.8,3.8163]
[1753884714869,40.8,3772.9,3772.8,3.8163]
[1753884715777,40.8,3772.9,3772.4,18.597]
[1753884715977,0.53013,3772.7,3772.6,2.4307]
[1753884716180,0.53012,3772.8,3772.7,6.3218]
[1753884716377,41.3301,3772.9,3772.7,6.3218]
[1753884716583,41.3301,3772.9,3772.8,6.3218]
[1753884716978,41.3301,3772.9,3772.8,4.9362]
[1753884717177,0.5699,3772.4,3772.3,3.3985]
[1753884717381,0.5302,3772.1,3772.0,1.5377]
[1753884717688,0.5302,3772.1,3772.0,2.4307]
[1753884717977,0.5302,3772.1,3771.8,0.1961902]
[1753884717978,0.53023,3771.9,3771.8,0.1961902]
[1753884718178,41.33023,3771.9,3771.8,1.0891902]
[1753884718379,40.8,3771.9,3771.8,2.6268902]
[1753884718583,40.8,3771.9,3771.8,4.0124902]
[1753884719783,40.8033,3771.9,3771.8,0.1961902]
[1753884719984,40.8033,3771.9,3771.8,2.5449902]
[1753884720186,40.8016,3771.9,3771.8,3.8556902]
[1753884720379,40.8,3771.9,3771.8,3.8556902]
[1753884720974,0.53015,3772.6,3772.4,0.53016]
[1753884721182,0.0016,3772.9,3772.5,3.6595]
[1753884721378,1.4014,3772.7,3772.6,2.3488]
[1753884721583,0.0017,3772.6,3772.1,2.3488]
[1753884721784,0.53185,3772.5,3772.1,0.53019]
[1753884721980,42.2014,3772.4,3772.3,3.6595]
[1753884722186,42.2031,3772.4,3772.3,2.3488]
[1753884722885,42.7346,3772.4,3772.3,0.8708]
[1753884723075,42.2031,3772.4,3772.3,2.3488]
[1753884723381,40.8,3772.4,3772.0,1.3107]
[1753884723588,1.4031,3772.2,3772.1,0.8708]
[1753884723786,41.33017,3772.4,3772.2,2.3488]
[1753884724086,2.90912329,3772.6,3772.3,3.6595]
[1753884724087,0.53014,3772.6,3772.3,3.6595]
[1753884724287,0.53014,3772.6,3772.2,0.53019]
[1753884724288,0.53016,3772.5,3772.4,3.6595]
[1753884724482,1.93156,3772.5,3772.4,3.6595]
[1753884724689,1.4031,3771.9,3771.8,0.1961902]
[1753884724989,1.9346,3771.9,3771.8,0.1961902]
[1753884725183,42.7346,3771.9,3771.8,0.1961902]
[1753884726086,40.8,3771.9,3771.8,2.5449902]
[1753884726286,42.2014,3771.9,3771.8,3.8556902]
[1753884726582,42.7346,3771.9,3771.8,0.1961902]
[1753884728289,42.7346,3771.9,3770.8,18.593]
[1753884728290,0.0017,3769.9,3769.4,0.8708]
[1753884728491,21.97492329,3769.9,3769.4,2.3488]
[1753884728682,21.97492329,3769.9,3768.5,0.53071]
[1753884728891,21.97492329,3769.9,3769.2,0.8708]
[1753884729189,62.77492329,3769.9,3769.2,0.8708]
[1753884729393,62.9891384,3769.9,3769.8,4.28e-06]
[1753884730093,0.53065,3769.0,3768.5,2.71221]
[1753884730292,0.53067,3768.8,3768.7,3.6595]
[1753884730688,1.1934,3769.0,3768.9,2.3488]
[1753884731290,0.53063,3769.1,3768.9,3.6595]
[1753884731498,0.53063,3769.1,3768.6,3.6595]
[1753884731688,0.53063,3769.1,3768.7,3.6595]
[1753884731992,0.53063,3769.1,3768.5,3.6595]
[1753884732183,0.53063,3769.1,3768.7,3.6595]
[1753884732387,0.53065,3769.0,3768.4,0.8708]
[1753884732588,18.741,3769.3,3768.5,2.7887]
[1753884732788,18.741,3769.3,3768.6,0.8708]
[1753884732990,18.741,3769.3,3768.7,1.478]
[1753884733295,1.72235,3769.0,3768.9,3.6595]
[1753884733496,0.53062,3769.2,3768.6,0.53069]
[1753884733791,0.53061,3769.3,3768.7,0.53068]
[1753884733997,0.53061,3769.3,3768.8,2.1815]
[1753884734198,0.53061,3769.3,3769.0,1.3107]
[1753884734389,0.53063,3769.1,3769.0,3.6595]
[1753884734594,1.72233,3769.1,3769.0,3.6595]
[1753884734893,1.72403,3769.1,3769.0,2.3488]
[1753884735089,1.1934,3769.1,3768.3,1.478]
[1753884735287,0.5307,3768.6,3768.5,3.6595]
[1753884735492,1.72239,3768.7,3768.6,3.6595]
[1753884735692,42.52239,3768.7,3768.6,3.6595]
[1753884735892,0.53067,3768.9,3768.8,2.3488]
[1753884736196,19.27962,3769.2,3768.3,4.11555]
[1753884736385,0.79066957,3769.1,3769.0,0.53064]
[1753884736590,18.757,3769.8,3769.3,2.7887]
[1753884736791,0.79018872,3769.7,3769.5,2.1815]
[1753884736986,41.59018872,3769.6,3769.5,3.6595]
[1753884737191,0.53055,3769.7,3769.5,3.6595]
[1753884737393,1.32063513,3769.6,3769.5,3.6595]
[1753884737594,2.51233513,3769.6,3769.5,2.3488]
[1753884737899,1.72397,3769.6,3769.5,0.8708]
[1753884738191,0.53065,3768.9,3768.8,1.3107]
[1753884738398,1.1917,3768.9,3768.4,2.7887]
[1753884738600,0.53069,3768.7,3768.6,1.478]
[1753884738897,0.53069,3768.7,3768.6,3.6595]
[1753884739299,0.53068,3768.8,3768.6,3.6595]
[1753884739594,0.53068,3768.8,3768.4,0.53071]
[1753884739595,0.94994385,3769.6,3768.4,2.7887]
[1753884739792,0.78341754,3769.5,3769.0,2.7887]
[1753884739994,0.53066,3768.9,3768.5,0.5307]
[1753884740194,0.53069,3768.7,3768.3,0.53074]
[1753884740388,0.53068,3768.8,3768.4,0.53071]
[1753884740595,0.53066,3768.9,3768.5,0.5307]
[1753884740795,0.53066,3768.9,3768.7,3.6595]
[1753884740992,0.53066,3768.9,3768.8,2.1815]
[1753884741196,0.53066,3768.9,3768.8,3.6595]
[1753884741197,0.78348979,3768.9,3768.8,3.6595]
[1753884742394,1.97518979,3768.9,3768.8,3.6595]
[1753884742605,1.97688979,3768.9,3768.8,0.8708]
[1753884742906,2.50838979,3768.9,3768.8,0.8708]
[1753884744207,1.72242,3768.5,3768.4,3.6595]
[1753884744505,2.50590979,3768.5,3768.4,3.6595]
[1753884744701,2.50760979,3768.5,3768.4,3.6595]
[1753884745101,0.78348979,3768.5,3768.4,3.6595]
[1753884745306,0.94994385,3768.7,3768.6,2.1815]
[1753884745506,1.73563838,3768.7,3768.6,3.6595]
[1753884745708,0.78569453,3768.7,3768.6,3.6595]
[1753884746906,0.17463838,3768.8,3768.7,0.53068]
[1753884747108,0.96119859,3768.8,3768.7,4.19018]
[1753884747906,0.78656021,3768.8,3768.7,4.19018]
[1753884748411,42.22491578,3769.2,3769.1,0.53063]
[1753884748613,1.42491578,3769.2,3769.1,4.15593]
[1753884748809,1.95549578,3769.5,3769.3,0.5306]
[1753884749010,42.22491578,3769.5,3769.4,3.6253]
[1753884749210,40.8,3769.5,3769.4,3.6253]
[1753884749507,0.53056,3769.6,3769.4,3.6253]
[1753884749710,0.53056,3769.6,3769.5,3.6253]
[1753884751316,0.53056,3769.6,3769.5,6.082]
[1753884751512,1.42491578,3769.8,3769.7,5.2054]
[1753884751809,1.42491578,3769.9,3769.8,0.53053]
[1753884752010,1.95537578,3770.3,3770.2,0.53047]
[1753884752207,0.53047,3770.2,3770.0,0.53049]
[1753884752406,0.53047,3770.3,3770.2,0.53047]
[1753884752611,0.81208238,3770.3,3770.2,1.80547]
[1753884752810,0.28161238,3770.3,3770.2,4.15577]
[1753884753120,1.42491578,3770.7,3770.6,0.53042]
[1753884753420,1.88750856,3770.7,3770.6,3.6253]
[1753884753820,0.20207174,3770.7,3770.6,3.6253]
[1753884754012,0.46791248,3770.7,3770.6,3.6253]
[1753884754317,1.88922,3770.6,3770.5,2.1516]
[1753884754520,0.73249174,3770.6,3770.5,3.6253]
[1753884755212,0.99891957,3770.6,3770.5,3.6253]
[1753884755414,1.41959355,3771.1,3770.5,3.6253]
[1753884755620,0.2026113,3771.0,3770.6,0.8766]
[1753884755818,1.94995355,3771.1,3770.8,1.40699]
[1753884756019,0.53037,3771.0,3770.8,0.53039]
[1753884756209,1.94994355,3771.1,3770.9,0.53037]
[1753884756614,0.53035,3771.1,3771.0,3.6253]
[1753884757022,0.53034,3771.2,3771.0,3.6253]
[1753884757215,1.41959355,3771.4,3771.2,0.53033]
[1753884757417,1.41959355,3771.4,3771.3,3.6253]
[1753884757720,1.94986355,3771.7,3771.6,1.80527]
[1753884757913,1.94986355,3771.7,3771.6,3.6253]
[1753884758115,1.41959355,3771.7,3771.6,3.6253]
[1753884758412,1.94985355,3771.8,3771.7,3.6253]
[1753884758813,1.61959355,3771.9,3771.8,0.53025]
[1753884759122,0.2,3771.9,3771.8,4.15555]
[1753884760819,0.53015,3772.6,3771.8,4.15555]
[1753884761018,0.53013,3772.7,3772.5,0.53014]
[1753884761217,0.53013,3772.7,3772.6,3.6253]
[1753884761524,0.53012,3772.8,3772.7,3.6253]
[1753884761822,3.31872,3772.8,3772.7,3.6253]
[1753884762214,4.23612,3772.8,3772.7,3.6253]
[1753884762617,3.706,3772.8,3772.3,2.7487]
[1753884762917,43.63427929,3772.9,3772.1,3.6253]
[1753884762918,4.23619,3772.2,3772.1,3.6253]
[1753884763222,3.31879,3772.2,3772.1,3.6253]
[1753884763920,2.7886,3772.2,3772.1,3.6253]
[1753884764118,0.53019,3772.3,3772.1,3.6253]
[1753884764317,0.53019,3772.3,3772.1,0.5302]
[1753884764620,0.53019,3772.3,3771.5,20.25201929]
[1753884764621,0.53019,3772.3,3772.2,3.6253]
[1753884764921,1.3588,3772.5,3772.3,3.6253]
[1753884764922,0.53017,3772.4,3772.3,3.6253]
[1753884765618,0.53013,3772.7,3772.5,2.3503]
[1753884765817,1.95993,3772.7,3772.6,3.6253]
[1753884766011,0.53013,3772.7,3772.6,3.6253]
[1753884766717,0.53011,3772.8,3772.6,1.40673]
[1753884766913,42.2298,3773.0,3772.7,3.6253]
[1753884767118,0.53002,3773.4,3773.3,2.1516]
[1753884767317,0.53002,3773.5,3773.3,0.53003]
[1753884767519,0.53006,3773.1,3773.0,1.4737]
[1753884767722,3.31866,3773.1,3773.0,3.6253]
[1753884768126,4.23606,3773.1,3773.0,2.1516]
[1753884768822,3.706,3773.1,3773.0,3.6253]
[1753884769122,2.7886,3773.1,3773.0,3.6253]
[1753884769927,0.53006,3773.2,3772.8,3.6253]
[1753884769928,3.31869,3772.9,3772.8,3.6253]
[1753884770127,4.23609,3772.9,3772.8,3.6253]
[1753884771020,0.53015,3772.5,3772.4,2.7487]
[1753884771229,1.3588,3772.5,3772.4,22.3453]
[1753884771525,0.53012,3772.7,3772.6,0.53013]
[1753884771733,0.53012,3772.8,3772.7,3.6253]
[1753884771929,1.3588,3773.3,3772.8,2.7487]
[1753884772229,0.53005,3773.2,3773.1,2.3503]
[1753884772417,0.53005,3773.2,3773.1,3.6253]
[1753884776221,2.10165,3773.2,3773.1,6.082]
[1753884777027,3.0717,3773.9,3773.8,0.6169]
[1753884777228,6.92755,3773.9,3773.8,6.082]
[1753884777624,3.22155,3773.9,3773.8,6.082]
[1753884777825,2.6916,3773.9,3773.8,6.082]
[1753884778825,1.7716,3773.9,3773.8,6.082]
[1753884779030,0.2,3773.9,3773.8,24.754]
[1753884780430,1.7656,3773.9,3773.8,24.754]
[1753884780640,6.51817,3773.8,3773.7,18.669]
[1753884780935,0.53007,3773.1,3772.9,3.7147]
[1753884781131,1.40717,3773.1,3773.0,18.67]
[1753884781332,2.6941,3772.7,3772.6,18.671]
[1753884781528,3.5712,3772.7,3772.6,19.20113]
[1753884781727,0.2,3773.9,3773.8,0.52997]
[1753884781932,0.2,3773.9,3773.8,22.95167]
[1753884782332,2.6941,3775.1,3774.2,4.24461]
[1753884782534,2.6941,3775.5,3774.5,1.50901929]
[1753884782832,0.52978,3775.2,3775.1,3.7147]
[1753884783032,1.29731429,3775.2,3775.1,3.7147]
[1753884783437,0.76753429,3775.2,3775.1,3.7147]
[1753884783737,0.76753429,3775.2,3775.1,2.2367]
[1753884783939,0.76753429,3775.2,3775.1,3.7147]
[1753884784239,0.2,3775.9,3775.7,0.5297]
[1753884784435,0.2,3775.9,3775.8,23.94471929]
[1753884785338,0.2,3775.9,3775.8,22.4357]
[1753884786434,0.2,3775.9,3775.8,23.94471929]
[1753884786631,0.2,3775.9,3775.8,23.02571929]
[1753884786835,0.2,3775.9,3775.8,23.94471929]
[1753884787244,0.2,3775.9,3775.8,22.4267]
[1753884788246,0.2,3775.9,3775.8,22.4117]
[1753884788449,0.2,3775.9,3775.8,3.7147]
[1753884788637,0.2,3775.9,3775.8,22.93639]
[1753884789246,0.2,3775.9,3775.8,4.24439]
[1753884789446,0.2,3775.9,3775.8,24.44440929]
[1753884789843,0.2,3775.9,3775.8,22.93539]
[1753884790246,0.2,3775.9,3775.8,3.7147]
[1753884790540,2.8941,3775.9,3775.8,22.3997]
[1753884791452,3.7712,3775.9,3775.8,19.601]
[1753884791849,3.7712,3775.9,3775.8,20.13069]
[1753884792052,2.8941,3775.9,3775.8,22.92639]
[1753884792249,1.6257,3775.9,3775.8,4.24439]
[1753884792450,1.6257,3775.9,3775.8,22.92239]
[1753884792641,2.8941,3775.9,3775.8,22.92239]
[1753884792848,0.2,3775.9,3775.8,22.92239]
[1753884793147,0.2,3775.9,3775.8,24.43140929]
[1753884793746,0.2,3775.9,3775.8,22.3927]
[1753884794047,1.6257,3775.9,3775.8,22.3927]
[1753884794253,2.8941,3775.9,3775.8,3.7147]
[1753884794454,2.8941,3775.9,3775.8,22.3857]
[1753884794651,3.7712,3775.9,3775.8,22.3857]
[1753884795162,3.5712,3775.8,3775.7,0.52969]
[1753884795453,3.5712,3775.8,3775.7,19.19369]
[1753884795654,3.5712,3775.8,3775.7,21.43039]
[1753884795854,3.5712,3775.8,3775.7,22.90839]
[1753884796052,3.5712,3775.8,3775.7,21.43039]
[1753884796251,0.2,3775.9,3775.7,21.98939]
[1753884796555,0.2,3775.9,3775.8,3.7147]
[1753884796853,1.6257,3775.9,3775.8,3.7147]
[1753884797449,0.2,3775.9,3775.8,3.7147]
[1753884801053,2.8941,3775.9,3775.8,2.397]
[1753884801359,0.2,3775.9,3775.8,3.7147]
[1753884805453,0.2,3775.9,3775.8,22.3397]
[1753884806548,2.8941,3775.9,3775.7,0.52969]
[1753884806749,0.2,3775.9,3775.8,22.3277]
[1753884808059,2.8941,3775.9,3775.8,22.3277]
[1753884808561,0.2,3775.9,3775.8,22.3277]
[1753884808764,0.2,3775.9,3775.8,24.7605]
[1753884809266,1.825,3775.9,3775.8,24.7605]
[1753884809458,3.3685,3775.9,3775.8,24.7605]
[1753884809762,1.2359,3775.9,3775.8,24.7605]
[1753884810056,3.3685,3775.9,3775.8,24.7605]
[1753884810466,5.6339,3775.9,3775.7,0.52969]
[1753884810658,6.3557,3775.8,3775.7,0.52969]
[1753884810960,6.3557,3775.8,3775.7,19.11469]
[1753884811958,6.3557,3775.8,3775.7,19.72199]
[1753884812155,6.3557,3775.8,3775.7,25.35999]
[1753884812359,0.2,3775.9,3775.8,3.7708]
[1753884812561,3.8219,3776.9,3776.8,0.52955]
[1753884812858,0.94541782,3777.2,3776.8,24.38636929]
[1753884813058,0.94541782,3777.2,3777.1,4.3003]
[1753884813256,1.43759355,3777.3,3777.1,19.1175]
[1753884813457,0.018,3777.3,3777.2,3.7708]
[1753884813658,0.018,3777.3,3777.2,5.27981929]
[1753884814052,0.96794352,3777.3,3777.2,5.27981929]
[1753884814251,0.018,3777.3,3777.2,5.27981929]
[1753884814659,1.41959355,3777.5,3777.4,3.7708]
[1753884814855,1.41959355,3777.5,3777.4,22.3528]
[1753884815063,1.41959355,3777.6,3777.5,4.30025]
[1753884815258,2.09490026,3777.9,3777.8,2.94031]
[1753884815465,0.2,3777.9,3777.8,22.88021]
[1753884815666,4.0219,3777.9,3777.8,18.577]
[1753884815866,4.0219,3777.9,3777.6,0.52942]
[1753884816066,0.2,3777.9,3777.5,0.52943]
[1753884816268,3.8219,3777.8,3777.7,18.576]
[1753884816869,3.8219,3777.7,3777.3,2.78227]
[1753884817061,3.8219,3777.5,3777.3,2.2528]
[1753884817263,3.8219,3777.5,3777.4,18.573]
[1753884817458,2.9001,3777.8,3777.5,3.7708]
[1753884817771,1.5435,3777.7,3777.6,0.52943]
[1753884817959,0.52943,3777.7,3777.6,18.568]
[1753884818164,4.35133,3777.7,3777.6,18.568]
[1753884818358,4.35133,3777.7,3777.4,0.52945]
[1753884818558,2.2784,3777.6,3777.4,0.52945]
[1753884818764,0.52941,3777.8,3777.6,0.52943]
[1753884818969,0.52943,3777.7,3777.5,18.568]
[1753884819364,3.8219,3777.6,3777.5,18.568]
[1753884820064,3.8219,3777.6,3777.1,1.3599]
[1753884820266,2.4653,3777.5,3777.2,19.4589]
[1753884820469,0.2,3777.9,3777.0,1.518]
[1753884820470,0.9218,3777.6,3777.0,1.518]
[1753884820763,0.9218,3776.8,3776.7,0.52956]
[1753884820967,0.52953,3776.9,3776.7,18.564]
[1753884821165,4.35143,3776.9,3776.7,18.564]
[1753884821370,3.8219,3776.8,3776.7,18.564]
[1753884822471,2.9001,3776.8,3776.7,22.3348]
[1753884822768,0.9218,3777.2,3776.7,18.564]
[1753884822972,3.8219,3776.5,3776.3,38.141]
[1753884823167,0.52958,3776.6,3776.3,38.141]
[1753884823168,0.52958,3776.6,3776.4,18.564]
[1753884823469,0.5296,3776.4,3776.3,38.141]
[1753884823769,3.8219,3776.1,3776.0,0.52965]
[1753884824074,3.8219,3776.1,3776.0,19.09465]
[1753884824974,3.8219,3776.1,3776.0,18.565]
[1753884825374,3.8219,3776.1,3776.0,19.4579]
[1753884825574,3.8219,3776.1,3776.0,20.8178]
[1753884826073,2.9001,3776.1,3776.0,22.3358]
[1753884826666,3.8219,3776.1,3776.0,18.565]
[1753884827179,0.52966,3776.0,3775.9,0.52966]
[1753884827376,1.50901929,3776.6,3775.9,0.52966]
[1753884827377,1.50901929,3776.6,3776.0,0.52966]
[1753884827572,0.52966,3776.0,3775.9,19.09466]
[1753884827769,0.52965,3776.1,3775.9,19.09466]
[1753884827973,3.8219,3776.0,3775.9,18.565]
[1753884829475,3.8219,3776.0,3775.9,19.4579]
[1753884830069,3.8219,3776.0,3775.9,20.8178]
[1753884830380,3.8219,3776.0,3775.9,22.3358]
[1753884831280,6.3557,3776.0,3775.9,24.8103]
[1753884831678,5.4339,3776.0,3775.9,24.8103]
[1753884831878,4.0773,3776.0,3775.9,24.8103]
[1753884832078,1.625,3776.0,3775.9,24.8103]
[1753884832979,3.38413,3776.3,3776.2,2.4745]
[1753884833185,5.96353,3776.3,3776.2,19.5733]
[1753884833385,6.3557,3776.3,3776.2,23.2933]
[1753884833585,6.3557,3776.3,3776.2,24.8113]
[1753884833785,4.0773,3776.3,3776.2,24.8113]
[1753884835081,1.3566,3776.6,3776.5,0.52959]
[1753884835386,1.9447,3777.1,3777.0,6.77481]
[1753884835582,1.0359,3777.1,3777.0,23.87361]
[1753884835786,1.3566,3777.4,3777.0,23.87361]
[1753884835787,2.80783,3777.7,3777.6,2.78222]
[1753884835985,2.2784,3777.7,3777.6,22.86622]
[1753884836492,3.8219,3777.7,3777.6,22.86622]
[1753884836785,0.7294,3777.9,3777.8,4.30021]
[1753884836786,0.2,3777.9,3777.8,4.30021]
[1753884837190,0.2,3777.9,3777.8,5.80922929]
[1753884839584,0.2,3777.9,3777.8,4.30021]
[1753884841178,0.2,3777.9,3777.8,6.75411]
[1753884842088,0.8071,3777.9,3777.7,0.52941]
[1753884842289,4.0352,3777.8,3777.7,0.8828]
[1753884842484,6.2429,3777.8,3777.7,0.6075]
[1753884842686,6.2429,3777.8,3777.7,19.1675]
[1753884842988,6.2429,3777.8,3777.7,18.56]
[1753884843187,1.8794,3777.6,3777.5,0.52944]
[1753884843392,6.2429,3777.6,3777.5,22.84944]
[1753884843597,1.7539,3777.9,3777.8,6.6674]
[1753884843797,5.5168,3777.9,3777.8,24.698]
[1753884843984,6.4429,3777.9,3777.8,23.2836]
[1753884844291,6.4429,3777.9,3777.8,24.698]
[1753884844498,2.64576,3779.7,3777.8,24.698]
[1753884844499,6.2429,3778.6,3778.5,0.52929]
[1753884844682,6.2429,3778.6,3778.5,24.698]
[1753884844683,0.6071,3778.6,3778.5,24.698]
[1753884844884,4.0352,3778.6,3778.5,24.698]
[1753884845086,5.3168,3778.6,3778.5,24.698]
[1753884845287,6.2429,3778.6,3778.5,24.698]
[1753884846590,4.6942,3779.1,3779.0,0.52924]
[1753884846890,6.2429,3779.1,3779.0,21.9441]
[1753884847092,6.2429,3779.1,3779.0,23.2826]
[1753884847282,6.2429,3779.1,3779.0,21.9441]
[1753884847488,6.2429,3779.1,3779.0,20.9805]
[1753884847893,6.2429,3779.1,3779.0,22.319]
[1753884848289,5.3168,3779.1,3779.0,24.697]
[1753884849283,6.2429,3779.1,3779.0,18.559]
[1753884849485,1.32301,3779.3,3778.6,0.9312]
[1753884849691,6.2429,3778.7,3778.6,1.5387]
[1753884849883,3.94189,3778.7,3778.6,20.0947]
[1753884850084,2.4865,3778.7,3778.6,24.694]
[1753884850489,5.3168,3778.7,3778.6,24.694]
[1753884851593,5.3168,3778.7,3778.6,6.138]
[1753884851798,6.2429,3778.7,3778.6,24.692]
[1753884853792,1.5539,3778.7,3778.6,24.692]
[1753884853991,0.9261,3779.1,3778.6,24.692]
[1753884853992,0.52923,3779.1,3778.9,2.98314]
[1753884854191,5.84603,3779.1,3779.0,24.691]
[1753884854792,6.77213,3779.1,3779.0,24.691]
[1753884854986,6.77213,3779.1,3779.0,18.553]
[1753884856801,6.2429,3779.1,3779.0,24.691]
[1753884857000,5.3168,3779.1,3779.0,24.691]
[1753884857695,42.87785,3779.6,3779.5,1.4903]
[1753884857895,45.08555,3779.6,3779.5,2.4215]
[1753884858497,40.8,3779.6,3779.5,6.138]
[1753884858692,0.72912,3779.9,3779.8,6.138]
[1753884858901,0.72912,3779.9,3779.8,24.689]
[1753884859101,46.84592,3779.9,3779.8,24.689]
[1753884859798,5.5168,3779.9,3779.8,24.689]
[1753884860398,6.04591,3779.9,3779.8,24.689]
[1753884860902,5.5168,3779.9,3779.8,24.689]
[1753884862304,6.4429,3779.9,3779.8,24.689]
[1753884862598,5.5168,3779.9,3779.8,24.689]
[1753884862804,1.7539,3779.9,3779.8,24.689]
[1753884863104,2.6865,3779.9,3779.8,24.689]
[1753884863307,5.5168,3779.9,3779.8,24.689]
[1753884863699,6.4429,3779.9,3779.8,24.689]
[1753884863895,6.4429,3779.9,3779.8,22.4193]
[1753884864107,6.4429,3779.9,3779.8,21.0049]
[1753884864607,2.4865,3779.6,3779.5,5.2068]
[1753884864803,6.77205,3779.6,3779.5,23.7538]